Workbook

Sheet 12 Burden Hours Collection
A1: USDA RURAL BUSINESS COOPERATIVE SERVICE
A2: RURAL COOPERATIVE DEVELOPMENT GRANT PROGRAM
A3: INFORMATION COLLECTION BURDEN HOURS
A4: OMB # 0570-0006
A5: 2024-03-15
A7: Estimated No. of Total Respondents (Applicants) | C7: 41 | J7: Estimated No. of Total Awards (Awardees) | K7: 30
A8: Average hours per response | C8: =I9/G9 -> 13.718 | J8: Number of responses per respondent | K8: =G9/C7 -> 13.24
A9: Gray Columns have automatic formulas. DO NOT input numbers in these columns. | F9: TOTAL | G9: =SUM(G13:G28) -> 543 | I9: =SUM(I13:I28) -> 7,449 | K9: =SUM(K13:K28) -> $519,573
A10: (A) | B10: (B) | C10: (C) | D10: (D) | E10: (E) | F10: (F) | G10: (G) | H10: (H) | I10: (I) | J10: (J) | K10: (K)
A11: Regulation Reference | B11: Title | C11: Form No. (If Any) | D11: % of Respondents Line Item is Applicable To | E11: Estimated # of Respondents | F11: Reports Filed Annually | G11: Total Responses (E) x (F) | H11: Estimated # of Hours Per Response | I11: Estimated Total Hours (G) x (H) | J11: Prof. Wage Rate | K11: Total Cost (I) x (J)
A12: APPLICATION
B13: SAM Registration | C13: written | D13: 100% | E13: =$C$7*D13 -> 41 | F13: 1 | G13: =E13*F13 -> 41 | H13: 2.00 | I13: =IF((H13*G13)="","",(H13*G13)) -> 82 | J13: ='12 Est Prof Wage Rate'!$G$36 -> $69.75 | K13: =IF((J13*I13)="","",(J13*I13)) -> $5,720
A14: §4284* | B14: Project Proposal | C14: written | D14: 100% | E14: =D14*$C$7 -> 41 | F14: 1 | G14: =E14*F14 -> 41 | H14: 96.00 | I14: 3,936 | J14: ='12 Est Prof Wage Rate'!$G$36 -> $69.75 | K14: $274,539
A15: §4284* | B15: Environmental - Categorical Exclusion without Report | C15: written | D15: 100% | E15: 41 | F15: 1 | G15: 41 | H15: 1.00 | I15: 41 | J15: ='12 Est Prof Wage Rate'!$G$36 -> $69.75 | K15: $2,860
A16: AWARD CLOSING, SERVICING, AND REPORTING
A17: §4284* | B17: Letter of Intent to Meet Conditions | C17: RD 1942-46 | D17: 100% | E17: =D17*$K$7 -> 30 | F17: 1 | G17: 30 | H17: 1.00 | I17: =IF((H17*G17)="","",(H17*G17)) -> 30 | J17: ='12 Est Prof Wage Rate'!$G$36 -> $69.75 | K17: =IF((J17*I17)="","",(J17*I17)) -> $2,093
A18: §4284* | B18: Request for Obligation of Funds | C18: RD 1940-1 | D18: 100% | E18: =D18*$K$7 -> 30 | F18: 1 | G18: 30 | H18: 1.00 | I18: 30 | J18: ='12 Est Prof Wage Rate'!$G$36 -> $69.75 | K18: $2,093
A19: §4284* | B19: Grant Agreement | C19: written | D19: 100% | E19: 30 | F19: 1 | G19: 30 | H19: 2.00 | I19: 60 | J19: ='12 Est Prof Wage Rate'!$G$36 -> $69.75 | K19: $4,185
A20: §4284* | B20: Potential Conflicts of Interest | C20: written | D20: 100% | E20: 30 | F20: 1 | G20: 30 | H20: 1.00 | I20: 30 | J20: ='12 Est Prof Wage Rate'!$G$36 -> $69.75 | K20: $2,093
A21: §4284* | B21: Financial Management System | C21: written | D21: 100% | E21: 30 | F21: 1 | G21: 30 | H21: 2.00 | I21: 60 | J21: ='12 Est Prof Wage Rate'!$G$36 -> $69.75 | K21: $4,185
A22: §4284* | B22: Beneficiary Data | C22: written | D22: 100% | E22: 30 | F22: 1 | G22: 30 | H22: 2.00 | I22: 60 | J22: ='12 Est Prof Wage Rate'!$G$36 -> $69.75 | K22: $4,185
A23: §4284* | B23: Performance Report | C23: written | D23: 100% | E23: 30 | F23: 2 | G23: 60 | H23: 18.00 | I23: 1,080 | J23: ='12 Est Prof Wage Rate'!$G$36 -> $69.75 | K23: $75,331
A24: §4284* | B24: Final Project Performance Report | C24: written | D24: 100% | E24: 30 | F24: 1 | G24: 30 | H24: 20.00 | I24: 600 | J24: ='12 Est Prof Wage Rate'!$G$36 -> $69.75 | K24: $41,850
A25: §4284* | B25: Project Outcome Performance Report | C25: written | D25: 100% | E25: 30 | F25: 2 | G25: 60 | H25: 20.00 | I25: 1,200 | J25: ='12 Est Prof Wage Rate'!$G$36 -> $69.75 | K25: =IF((J25*I25)="","",(J25*I25)) -> $83,701
A26: §4284* | B26: Audit Requirements | C26: written | D26: 100% | E26: 30 | F26: 1 | G26: 30 | H26: 6.00 | I26: 180 | J26: ='12 Est Prof Wage Rate'!$G$36 -> $69.75 | K26: $12,555
B27: SAM Registration Maintenance | C27: written | D27: 100% | E27: 30 | F27: 1 | G27: 30 | H27: 1.00 | I27: 30 | J27: ='12 Est Prof Wage Rate'!$G$36 -> $69.75 | K27: $2,093
B28: Recordkeeping Requirements | D28: 100% | E28: 30 | F28: 1 | G28: 30 | H28: 1.00 | I28: 30 | J28: ='12 Est Prof Wage Rate'!$G$36 -> $69.75 | K28: $2,093
A29: §4284* 7 CFR part 4284 is currently being revised and these sections are subject to change.

Sheet 12 Not Inc in Burden Hours
A1: ='12 Burden Hours Collection'!A1 -> USDA RURAL BUSINESS COOPERATIVE SERVICE
A2: ='12 Burden Hours Collection'!A2 -> RURAL COOPERATIVE DEVELOPMENT GRANT PROGRAM
A3: INFORMATION COLLECTION NOT INCLUDED IN BURDEN HOURS
A4: ='12 Burden Hours Collection'!A4 -> OMB # 0570-0006
A5: ='12 Burden Hours Collection'!A5 -> 2024-03-15
A7: Estimated No. of Total Respondents (Applicants) | C7: 41 | J7: Estimated No. of Total Awards (Awardees) | K7: 30
A8: Average hours per response | C8: =I9/G9 -> 0.750 | J8: Number of responses per respondent | K8: =G9/C7 -> 8.85
A9: Gray Columns have automatic formulas. DO NOT input numbers in these columns. | F9: TOTAL | G9: =SUM(G13:G20) -> 363 | I9: =SUM(I13:I20) -> 272 | K9: =SUM(K13:K20) -> $18,990
A10: (A) | B10: (B) | C10: (C) | D10: (D) | E10: (E) | F10: (F) | G10: (G) | H10: (H) | I10: (I) | J10: (J) | K10: (K)
A11: Regulation Reference | B11: Title | C11: Form No. (If Any) | D11: % of Respondents Line Item is Applicable To | E11: Estimated # of Respondents | F11: Reports Filed Annually | G11: Total Responses (E) x (F) | H11: Estimated # of Hours Per Response | I11: Estimated Total Hours (G) x (H) | J11: Prof. Wage Rate | K11: Total Cost (I) x (J)
A12: APPLICATION
A13: §4284* | B13: Application for Federal Assistance | C13: Form SF-424 (4040-0004) | D13: 100% | E13: =D13*$C$7 -> 41 | F13: 1 | G13: =E13*F13 -> 41 | H13: 1 | I13: =IF((H13*G13)="","",(H13*G13)) -> 41 | J13: ='12 Est Prof Wage Rate'!$G$36 -> $69.75 | K13: =IF((J13*I13)="","",(J13*I13)) -> $2,860
A14: §4284* | B14: Budget Information for Non-Construction Programs | C14: Form SF-424A (4040-0006) | D14: 100% | E14: =D14*$C$7 -> 41 | F14: 1 | G14: =E14*F14 -> 41 | H14: 1 | I14: =IF((H14*G14)="","",(H14*G14)) -> 41 | J14: ='12 Est Prof Wage Rate'!$G$36 -> $69.75 | K14: =IF((J14*I14)="","",(J14*I14)) -> $2,860
A15: §4284* | B15: Assurance Agreement | C15: RD 400-4 (0575-0201, -0189) | D15: 100% | E15: =D15*$C$7 -> 41 | F15: 1 | G15: =E15*F15 -> 41 | H15: 0.25 | I15: =IF((H15*G15)="","",(H15*G15)) -> 10 | J15: ='12 Est Prof Wage Rate'!$G$36 -> $69.75 | K15: =IF((J15*I15)="","",(J15*I15)) -> $715
A16: AWARD CLOSING, SERVICING, AND REPORTING
A17: §4284* | B17: Disclosure of Lobbying Activities | C17: Form SF-LLL (0348-0046) | D17: 100% | E17: =D17*$K$7 -> 30 | F17: 1 | G17: =E17*F17 -> 30 | H17: 0.5 | I17: =IF((H17*G17)="","",(H17*G17)) -> 15 | J17: ='12 Est Prof Wage Rate'!$G$36 -> $69.75 | K17: =IF((J17*I17)="","",(J17*I17)) -> $1,046
A18: §4284* | B18: ACH Vendor/Miscellaneous Payment Enrollment Form | C18: Form SF-3881 (1530-0069) | D18: 100% | E18: =D18*$K$7 -> 30 | F18: 1 | G18: =E18*F18 -> 30 | H18: 0.5 | I18: =IF((H18*G18)="","",(H18*G18)) -> 15 | J18: ='12 Est Prof Wage Rate'!$G$36 -> $69.75 | K18: =IF((J18*I18)="","",(J18*I18)) -> $1,046
A19: §4284* | B19: Request for Advance or Reimbursement | C19: Form SF-270 (4040-0012) | D19: 100% | E19: =D19*$K$7 -> 30 | F19: 4 | G19: =E19*F19 -> 120 | H19: 1 | I19: =IF((H19*G19)="","",(H19*G19)) -> 120 | J19: ='12 Est Prof Wage Rate'!$G$36 -> $69.75 | K19: =IF((J19*I19)="","",(J19*I19)) -> $8,370
A20: §4284* | B20: Federal Financial Report | C20: Form SF-425 (4040-0014) | D20: 100% | E20: =D20*$K$7 -> 30 | F20: 2 | G20: =E20*F20 -> 60 | H20: 0.5 | I20: =IF((H20*G20)="","",(H20*G20)) -> 30 | J20: ='12 Est Prof Wage Rate'!$G$36 -> $69.75 | K20: =IF((J20*I20)="","",(J20*I20)) -> $2,093
A21: §4284* 7 CFR part 4284 is currently being revised and these sections are subject to change.

Sheet 12 Est Prof Wage Rate
A1: ='12 Burden Hours Collection'!A1 -> USDA RURAL BUSINESS COOPERATIVE SERVICE
A2: ='12 Burden Hours Collection'!A2 -> RURAL COOPERATIVE DEVELOPMENT GRANT PROGRAM
A3: ESTIMATED PROFESSIONAL WAGE RATE
A4: ='12 Burden Hours Collection'!A4 -> OMB # 0570-0006
A5: ='12 Burden Hours Collection'!A5 -> 2024-03-15
A7: Instructions:
A8: 1. Use the U.S. Bureau of Labor Statistics Occupational Emplyment and Wage Statistics Link below to complete Columns A, B, C for the table below.
A9: a. Click the link: | B9: https://www.bls.gov/oes/tables.htm
A10: b. Under the latest Month Year (May 2023) click Occupation Profiles
A11: c. Use the Occupational Titles to choose which professions (A) need to be added to the table below. You can more than one occupation or just one.
A12: d. The code in front of each Occupational Title is the Occupation Code that goes in (B) for the table below.
A13: e. When you click on each Occupational Titles, choose the Mean Hourly Wage to input in (C) for the table below.
A14: 2. Use the U.S. Bureau of Labor Economic News Release, Employer Costs for Employee Compension to complete Column D for the table below.
A15: a. Click the link: | B15: https://www.bls.gov/news.release/ecec.toc.htm
A16: b. Choose "The PDF verison of the news release" link
A17: c. The latest (March 13, 2024) News Release for Employer Costs for Employee Compensation - December 2023 opens in separate tab.
A18: d. On first page, second paragraph use the benefit costs % of: | D18: 29.60%
A19: 3. For each profession fill in the % for (F). The total for the column should be 100%.
A20: a. Note that if there is only one profession then (F) would be 100%.
A22: Gray Columns have automatic formulas. DO NOT input numbers in these columns.
A23: (A) | B23: (B) | C23: (C) | D23: (D) | E23: (E) | F23: (F) | G23: (G)
A24: Profession | B24: Bureau of Labor Occupation Code 1.d | C24: Mean Wage 1.e | D24: Benefits 2 (C) * (2.d) | E24: Total Hourly Wage (C ) + (D) | F24: % Time Spent on Burden | G24: Weighted Hourly Salary (E) * (F)
A25: General & Operations Manager | B25: 11-1021 | C25: $59.07 | D25: =IF(C25=0,"",(C25*$D$18)) -> $17.48 | E25: =IF(SUM(C25:D25)=0,"",SUM(C25:D25)) -> $76.55 | F25: 40% | G25: =IF(E25="","",(E25*F25)) -> $30.62
A26: Management Analysts | B26: 13-1111 | C26: $50.32 | D26: =IF(C26=0,"",(C26*$D$18)) -> $14.89 | E26: =IF(SUM(C26:D26)=0,"",SUM(C26:D26)) -> $65.21 | F26: 60% | G26: =IF(E26="","",(E26*F26)) -> $39.13
D27: =IF(C27=0,"",(C27*$D$18)) ->  | E27: =IF(SUM(C27:D27)=0,"",SUM(C27:D27)) ->  | G27: =IF(E27="","",(E27*F27)) -> 
D28: =IF(C28=0,"",(C28*$D$18)) ->  | E28: =IF(SUM(C28:D28)=0,"",SUM(C28:D28)) ->  | G28: =IF(E28="","",(E28*F28)) -> 
A36: TOTAL | D36: =IF(C36=0,"",(C36*#REF!)) ->  | F36: =SUM(F25:F35) -> 100% | G36: =SUM(G25:G35) -> $69.75

Sheet 14 Annual Cost to Fed Gov Est
A1: ='12 Burden Hours Collection'!A1 -> USDA RURAL BUSINESS COOPERATIVE SERVICE
A2: ='12 Burden Hours Collection'!A2 -> RURAL COOPERATIVE DEVELOPMENT GRANT PROGRAM
A3: ANNUALIZED COST TO THE FEDERAL GOVERNMENT
A4: ='12 Burden Hours Collection'!A4 -> OMB # 0570-0006
A5: ='12 Burden Hours Collection'!A5 -> 2024-03-15
A7: 1. OPM GS & SES Pay Tables:
A8: Click Link | B8: Pay & Leave (opm.gov)
A9: Click "pay tables" from first paragraph
A10: Click current Year at top under Salaries & Wages
A12: a. OPM GS Pay Tables: Under "General Schedule (GS) & Locality Pay Tables" click 20## GS Pay Tables (ex. 2024 GS Pay Tables)
A13: Then choose Annual Rate Table for Washington-Baltimore-Arlington.
A15: b. OPM SES Schedules: Under "Executive & Senior Level Employee Pay Tables" click "Rates of Pay for the Executive Schedule"
A16: Then choose Annual Rate Table for Basic Rates of Pay for Members of the Senior Executive Service.
A18: 2. Benefit % (OMB Memo M-08 13) | B18: https://www.whitehouse.gov/wp-content/uploads/legacy_drupal_files/omb/memoranda/2008/m08-13.pdf | K18: 36.25%
A20: Gray & Blue Columns have automatic formulas. DO NOT input numbers in these columns. | G20: Total | H20: =H22+H25+H28+H31 -> 276.00 | I20: =I22+I25+I28+I31 -> $22,429.25 | K20: =K22+K25+K28+K31 -> $876,030.38
A21: Staff Position | B21: GS Grade | C21: GS Step | D21: GS Salary | E21: Hourly Rate Calc | F21: Benefits Calc | G21: Total Salary Rate Calc | H21: Hours Required | I21: Cost Subtotals | J21: # of Responses | K21: Total Costs
A22: Application | H22: =SUM(H23:H24) -> 46.00 | I22: =SUM(I23:I24) -> $3,958.78 | J22: 41 | K22: =J22*I22 -> $162,310.02
A23: Program Analyst | B23: 13 | C23: 5 | D23: $133,692 | E23: =(D23/52)/40 -> $64.28 | F23: =E23*$K$18 -> $23.30 | G23: =E23+F23 -> $87.57 | H23: 41.00 | I23: =H23*G23 -> $3,590.56
A24: Loan Specialist | B24: 12 | C24: 5 | D24: $112,425 | E24: =(D24/52)/40 -> $54.05 | F24: =E24*$K$18 -> $19.59 | G24: =E24+F24 -> $73.64 | H24: 5.00 | I24: =H24*G24 -> $368.22
A25: Application Review | H25: =SUM(H26:H27) -> 180.00 | I25: =SUM(I26:I27) -> $14,509.66 | J25: 41 | K25: =J25*I25 -> $594,896.15
A26: Program Analyst | B26: 13 | C26: 5 | D26: $133,692 | E26: =(D26/52)/40 -> $64.28 | F26: =E26*$K$18 -> $23.30 | G26: =E26+F26 -> $87.57 | H26: 90.00 | I26: $7,881.72
A27: Loan Specialist | B27: 12 | C27: 5 | D27: $112,425 | E27: $54.05 | F27: $19.59 | G27: $73.64 | H27: 90.00 | I27: $6,627.94
A28: Grant Award | H28: =SUM(H29:H30) -> 30.00 | I28: =SUM(I29:I30) -> $2,487.93 | J28: 30 | K28: =J28*I28 -> $74,637.95
A29: Program Analyst | B29: 13 | C29: 5 | D29: $133,692 | E29: =(D29/52)/40 -> $64.28 | F29: =E29*$K$18 -> $23.30 | G29: =E29+F29 -> $87.57 | H29: 20.00 | I29: $1,751.49
A30: Loan Specialist | B30: 12 | C30: 5 | D30: $112,425 | E30: =(D30/52)/40 -> $54.05 | F30: $19.59 | G30: $73.64 | H30: 10.00 | I30: $736.44
A31: Post Grant Award | H31: =SUM(H32:H32) -> 20.00 | I31: =SUM(I32:I32) -> $1,472.88 | J31: 30 | K31: =J31*I31 -> $44,186.27
A32: Loan Specialist | B32: 12 | C32: 5 | D32: $112,425 | E32: =(D32/52)/40 -> $54.05 | F32: =E32*$K$18 -> $19.59 | G32: =E32+F32 -> $73.64 | H32: 20.00 | I32: $1,472.88
